bitfinex-derivatives/quotes_BTCF0:USTF0_20210409
["timestamp","ask_amount","ask_price","bid_price","bid_amount"]
[1617936174864,1.92511077,58115.0,58114.0,0.66953728]
[1617936177367,0.92511077,58115.0,58114.0,0.66953728]
[1617936178770,0.4752842,58115.0,58114.0,1.11577546]
[1617936183674,0.4752842,58115.0,58114.0,1.26936016]
[1617936200893,1.4752842,58115.0,58114.0,1.26936016]
[1617936202696,0.4752842,58115.0,58114.0,1.26936016]
[1617936204296,1.4752842,58115.0,58114.0,1.26936016]
[1617936204696,0.4752842,58115.0,58114.0,1.26936016]
[1617936208705,0.92561834,58115.0,58114.0,1.26936016]
[1617936208903,1.92561834,58115.0,58114.0,1.26936016]
[1617936210206,2.18131571,58115.0,58114.0,1.11577546]
[1617936217116,1.18131571,58115.0,58114.0,1.11577546]
[1617936217519,0.92561834,58115.0,58114.0,1.11577546]
[1617936218320,1.92561834,58115.0,58114.0,1.11577546]
[1617936222025,1.92561834,58115.0,58114.0,0.66953728]
[1617936224227,1.92561834,58115.0,58114.0,1.11535038]
[1617936225330,1.92561834,58115.0,58114.0,0.66953728]
[1617936225729,1.92561834,58115.0,58114.0,0.73097244]
[1617936226228,0.92561834,58115.0,58114.0,0.66953728]
[1617936226429,1.92561834,58115.0,58114.0,0.66953728]
[1617936226731,1.92561834,58115.0,58114.0,1.1152138]
[1617936227230,1.92561834,58115.0,58114.0,0.66953728]
[1617936227632,1.92561834,58115.0,58114.0,1.17665036]
[1617936228132,1.92561834,58115.0,58114.0,1.11521548]
[1617936228332,2.03985834,58115.0,58114.0,1.11521548]
[1617936228534,1.03985834,58115.0,58114.0,1.11521548]
[1617936228732,2.03985834,58115.0,58114.0,1.11521548]
[1617936229233,2.09185834,58115.0,58114.0,0.66953728]
[1617936229434,2.21656853,58115.0,58114.0,0.73097442]
[1617936229634,2.16456853,58115.0,58114.0,0.73097442]
[1617936229835,2.16456853,58115.0,58114.0,0.66953728]
[1617936230736,2.67617335,58115.0,58114.0,0.66953728]
[1617936231935,2.67617335,58115.0,58114.0,0.30445796]
[1617936234039,2.16456853,58115.0,58114.0,0.30445796]
[1617936234439,2.43088662,58115.0,58114.0,0.36589626]
[1617936234839,2.16456853,58115.0,58114.0,0.30445796]
[1617936235639,2.67577544,58115.0,58114.0,0.30445796]
[1617936236141,2.16456853,58115.0,58114.0,0.30445796]
[1617936237041,2.16456853,58115.0,58114.0,0.66894595]
[1617936238342,2.16456853,58115.0,58114.0,0.30445796]
[1617936239243,2.05731198,58115.0,58114.0,0.30445796]
[1617936239644,2.16456853,58115.0,58114.0,0.30445796]
[1617936241447,2.16456853,58115.0,58114.0,0.36589687]
[1617936241950,2.16456853,58115.0,58114.0,0.30445796]
[1617936242348,2.67579023,58115.0,58114.0,0.30445796]
[1617936244850,2.67579023,58115.0,58113.0,0.30379597]
[1617936245350,1.45412559,58114.0,58113.0,0.30379597]
[1617936247053,2.45412559,58114.0,58113.0,0.30379597]
[1617936249458,1.94307001,58114.0,58113.0,0.30379597]
[1617936249958,2.45412371,58114.0,58113.0,0.30379597]
[1617936250559,1.94307001,58114.0,58113.0,0.30379597]
[1617936250960,2.45410472,58114.0,58112.0,0.30367775]
[1617936251862,0.94788742,58113.0,58112.0,0.30367775]
[1617936252262,1.21727767,58113.0,58112.0,0.30367775]
[1617936252563,0.94788742,58113.0,58112.0,0.30367775]
[1617936252763,1.94788742,58113.0,58112.0,0.30367775]
[1617936258169,1.99878742,58113.0,58112.0,0.30367775]
[1617936260171,1.94788742,58113.0,58112.0,0.30367775]
[1617936260570,2.45897385,58113.0,58111.0,0.30380891]
[1617936261070,1.45999439,58112.0,58109.0,0.36450786]
[1617936261471,0.13038309,58112.0,58111.0,0.303947]
[1617936261973,1.94861915,58112.0,58111.0,0.303947]
[1617936262774,1.94861915,58112.0,58111.0,0.66881127]
[1617936270381,1.94861915,58112.0,58111.0,0.303947]
[1617936270382,2.46001443,58112.0,58111.0,0.303947]
[1617936273385,2.46001443,58112.0,58111.0,0.6695436]
[1617936274590,1.94861915,58112.0,58111.0,0.6695436]
[1617936275991,1.94861915,58112.0,58111.0,0.3655966]
[1617936276392,1.94861915,58112.0,58111.0,0.67030276]
[1617936276593,1.13038309,58112.0,58111.0,0.67030276]
[1617936276893,2.21935083,58112.0,58111.0,0.67030276]
[1617936277394,1.94884638,58112.0,58111.0,0.67030276]
[1617936278397,2.46039964,58112.0,58111.0,0.67030276]
[1617936278797,1.94884638,58112.0,58111.0,0.67030276]
[1617936279799,2.46039526,58112.0,58111.0,0.80524276]
[1617936280099,1.94884638,58112.0,58111.0,0.80524276]
[1617936280499,1.94884638,58112.0,58111.0,0.86668637]
[1617936283207,1.94884638,58112.0,58111.0,1.31357093]
[1617936285704,0.94884638,58112.0,58111.0,1.31357093]
[1617936286308,0.81846329,58112.0,58111.0,1.31357093]
[1617936295320,0.36831871,58112.0,58111.0,1.31357093]
[1617936295720,0.81848939,58112.0,58111.0,1.31357093]
[1617936299522,1.81848939,58112.0,58111.0,1.31357093]
[1617936299923,0.95081924,58112.0,58111.0,1.31357093]
[1617936300324,1.95081924,58112.0,58111.0,1.31357093]
[1617936300524,1.81848939,58112.0,58111.0,1.31357093]
[1617936301025,1.9508242,58112.0,58111.0,1.31357093]
[1617936301427,1.9508242,58112.0,58111.0,0.86668637]
[1617936301625,1.9508242,58112.0,58111.0,0.73174637]
[1617936302227,2.0687442,58112.0,58111.0,0.73174637]
[1617936302629,2.0687442,58112.0,58111.0,0.67030276]
[1617936302829,5.2411442,58112.0,58111.0,0.67030276]
[1617936303740,5.51208735,58112.0,58111.0,0.67030276]
[1617936304230,5.51208735,58112.0,58111.0,0.73174642]
[1617936304531,6.02357552,58112.0,58111.0,0.30470616]
[1617936304929,6.22357552,58112.0,58111.0,0.30470616]
[1617936305132,6.22357552,58112.0,58109.0,0.30449619]
[1617936305530,6.22357552,58112.0,58108.0,0.30454547]
[1617936305531,6.02357552,58112.0,58108.0,0.30454547]
[1617936305730,0.2,58111.0,58108.0,0.30454547]
[1617936305931,1.02170888,58111.0,58109.0,0.30453007]
[1617936306132,3.2247,58110.0,58109.0,0.30453007]
[1617936306333,4.88735709,58110.0,58108.0,0.30461476]
[1617936306832,1.73393914,58109.0,58108.0,0.30461476]
[1617936307033,2.73393914,58109.0,58108.0,0.30461476]
[1617936307233,5.97053914,58109.0,58108.0,0.30461476]
[1617936307839,5.97053914,58109.0,58107.0,0.30438006]
[1617936308035,0.10725655,58108.0,58107.0,0.30438006]
[1617936308239,1.32879762,58108.0,58107.0,0.30438006]
[1617936308934,2.32879762,58108.0,58107.0,0.30438006]
[1617936309534,2.83994957,58108.0,58107.0,0.30438006]
[1617936311537,2.32879762,58108.0,58107.0,0.30438006]
[1617936312636,2.83996042,58108.0,58107.0,0.30438006]
[1617936313138,2.83996042,58108.0,58106.0,0.30456276]
[1617936314039,0.9500488,58107.0,58106.0,0.30456276]
[1617936314940,2.46121522,58107.0,58106.0,0.30456276]
[1617936315443,3.6546,58106.0,58105.0,0.30455911]
[1617936315841,4.87508286,58106.0,58105.0,0.30455911]
[1617936317040,5.87508286,58106.0,58105.0,0.30455911]
[1617936318047,5.87508286,58106.0,58102.0,0.30452003]
[1617936318542,0.81718732,58103.0,58102.0,0.30452003]
[1617936318942,1.81718732,58103.0,58102.0,0.30452003]
[1617936319442,1.94922191,58103.0,58102.0,0.30452003]
[1617936321045,2.21971213,58103.0,58102.0,0.30452003]
[1617936321444,1.94922159,58103.0,58102.0,0.30452003]
[1617936326353,1.94922159,58103.0,58099.0,0.36542404]
[1617936326354,1.94922159,58103.0,58101.0,0.30437922]
[1617936326753,0.94902452,58102.0,58101.0,0.30437922]
[1617936326952,1.94902452,58102.0,58101.0,0.30437922]
[1617936327153,2.00002452,58102.0,58101.0,0.30437922]
[1617936327754,4.88012452,58102.0,58101.0,0.30437922]
[1617936328261,4.93638107,58102.0,58101.0,0.30437922]
[1617936328454,4.93638107,58102.0,58087.0,0.06145678]
[1617936328455,5.20699732,58102.0,58099.0,0.30442021]
[1617936328956,1.81695049,58100.0,58099.0,0.30442021]
[1617936329154,1.93005049,58100.0,58099.0,0.30442021]
[1617936329354,1.93005049,58100.0,58098.0,0.30431084]
[1617936329355,2.06214492,58100.0,58098.0,0.30431084]
[1617936329654,0.49961018,58099.0,58096.0,0.36517301]
[1617936330054,1.49961018,58099.0,58096.0,0.36517301]
[1617936330255,0.36750154,58097.0,58096.0,0.36517301]
[1617936331153,0.36750154,58097.0,58096.0,0.66939312]
[1617936331956,1.36750154,58097.0,58096.0,0.66939312]
[1617936332457,1.5032171,58097.0,58096.0,0.30422011]
[1617936337760,1.5032171,58097.0,58096.0,3.59742011]
[1617936339761,1.5543171,58097.0,58096.0,3.59742011]
[1617936340461,1.5032171,58097.0,58096.0,3.59742011]
[1617936343467,1.5544171,58097.0,58096.0,3.59742011]
[1617936344671,1.5544171,58097.0,58096.0,3.2932]
[1617936344969,1.5544171,58097.0,58096.0,3.59636192]
[1617936345169,1.5032171,58097.0,58093.0,0.36394327]
[1617936345469,1.5032171,58097.0,58096.0,0.3032287]
[1617936345669,1.5032171,58097.0,58093.0,0.36394327]
[1617936345870,1.5032171,58097.0,58096.0,0.30325311]
[1617936346271,0.10725655,58096.0,58095.0,0.30331651]
[1617936346770,0.47463152,58096.0,58095.0,0.30331651]
[1617936347372,1.47463152,58096.0,58095.0,0.30331651]
[1617936347871,1.47463152,58096.0,58094.0,0.30336126]
[1617936348372,0.36755078,58095.0,58094.0,0.30336126]
[1617936348872,0.81675522,58095.0,58092.0,0.30353191]
[1617936349074,1.81675522,58095.0,58092.0,0.30353191]
[1617936349373,0.81676583,58093.0,58091.0,0.30361056]
[1617936350175,0.36755577,58092.0,58091.0,0.30361056]
[1617936350374,0.41865577,58092.0,58091.0,0.30361056]
[1617936350876,1.41865577,58092.0,58091.0,0.30361056]
[1617936351080,2.00377818,58092.0,58090.0,0.30367606]
[1617936351477,1.55456213,58092.0,58091.0,0.3036828]
[1617936351978,1.55456213,58092.0,58086.0,0.105]
[1617936351979,1.55456213,58092.0,58089.0,0.30350873]
[1617936352479,0.47459747,58090.0,58089.0,0.30350873]
[1617936353279,0.60981132,58090.0,58088.0,0.30353563]
[1617936353679,0.5025586,58089.0,58088.0,0.30353563]
[1617936354279,1.5025586,58089.0,58088.0,0.30353563]
[1617936355881,1.0,58089.0,58088.0,0.30353563]
[1617936357882,1.36733425,58089.0,58088.0,0.30353563]
[1617936359586,1.36733425,58089.0,58088.0,0.66853945]
[1617936360787,4.93413425,58089.0,58088.0,0.66853945]
[1617936361189,4.5668,58089.0,58088.0,0.66853945]
[1617936361589,4.93474122,58089.0,58088.0,0.66853945]
[1617936362390,4.5668,58089.0,58086.0,2.5848]
[1617936362892,4.5668,58089.0,58088.0,0.53325139]
[1617936363413,3.5668,58089.0,58088.0,0.53325139]
[1617936363792,4.5668,58089.0,58088.0,0.53325139]
[1617936363992,4.5668,58089.0,58088.0,0.9787956]
[1617936370603,3.5668,58089.0,58088.0,0.9787956]
[1617936371304,4.5668,58089.0,58088.0,0.9787956]
[1617936373308,4.5668,58089.0,58088.0,0.53325139]
[1617936373816,5.01674861,58089.0,58088.0,0.53325139]
[1617936376913,5.01674861,58089.0,58088.0,0.30395626]
[1617936378814,5.52814672,58089.0,58088.0,0.30395626]
[1617936379415,5.52814672,58089.0,58087.0,0.30442639]
[1617936379813,1.37880292,58088.0,58087.0,0.30442639]
[1617936380113,1.51006292,58088.0,58087.0,0.30442639]
[1617936380715,2.51006292,58088.0,58087.0,0.30442639]
[1617936381618,1.9986652,58088.0,58086.0,0.105]
[1617936382019,0.58999608,58087.0,58086.0,0.105]
[1617936382219,1.58999608,58087.0,58086.0,0.085]
[1617936382419,0.58999608,58087.0,58086.0,0.007]
[1617936382620,1.58999608,58087.0,58086.0,0.001]
[1617936383923,3.80079554,58087.0,58086.0,0.001]
[1617936384122,8.80079554,58087.0,58086.0,0.001]
[1617936384325,9.07577222,58087.0,58086.0,0.001]
[1617936384723,9.49701638,58087.0,58086.0,0.001]
[1617936386027,10.0691696,58087.0,58086.0,0.001]
[1617936388230,10.43702956,58087.0,58086.0,0.001]
[1617936388851,3.7026,58070.0,58065.0,0.30516667]
[1617936389062,0.2,58069.0,58064.0,0.30519504]
[1617936389229,1.0,58066.0,58064.0,0.30519504]
[1617936389529,0.81748141,58065.0,58064.0,0.30519504]
[1617936390031,1.95563486,58065.0,58064.0,0.30519504]
[1617936390432,5.22163486,58065.0,58064.0,0.30519504]
[1617936390632,5.32889141,58065.0,58064.0,0.30519504]
[1617936390835,5.60381973,58065.0,58064.0,0.30519504]
[1617936391034,5.65531973,58065.0,58064.0,0.30519504]
[1617936391435,5.65531973,58065.0,58062.0,0.30517712]
[1617936391734,5.65531973,58065.0,58063.0,0.30514329]
[1617936392336,2.23350098,58064.0,58063.0,0.30514329]
[1617936392535,4.97220098,58064.0,58063.0,0.30514329]
[1617936392836,4.97220098,58064.0,58055.0,0.44751078]
[1617936392837,3.7387,58064.0,58055.0,0.30379535]
[1617936393037,3.7387,58064.0,58054.0,0.30387983]
[1617936393236,1.0,58056.0,58054.0,0.30387983]
[1617936393437,1.13105,58056.0,58054.0,0.30387983]
[1617936394637,0.10725655,58055.0,58054.0,0.30387983]
[1617936395141,1.10725655,58055.0,58054.0,0.30387983]
[1617936397041,0.10725655,58055.0,58054.0,0.30387983]
[1617936397242,1.15815655,58055.0,58054.0,0.30387983]
[1617936398143,1.15815655,58055.0,58053.0,0.30371219]
[1617936398844,2.9716,58054.0,58053.0,0.30371219]
[1617936399044,3.9716,58054.0,58053.0,0.30371219]
[1617936402048,1.0,58054.0,58053.0,0.30371219]
[1617936402250,1.0,58054.0,58053.0,3.25211219]
[1617936402653,1.0,58054.0,58053.0,0.36520808]
[1617936403053,1.0,58054.0,58053.0,0.30371219]
[1617936403352,2.8902,58054.0,58053.0,0.30371219]
[1617936403755,3.8902,58054.0,58053.0,0.30371219]
[1617936404555,1.0,58054.0,58053.0,0.30371219]
[1617936404754,1.0,58054.0,58053.0,3.29131219]
[1617936404957,0.10725655,58055.0,58053.0,3.29131219]
[1617936405157,1.0,58054.0,58053.0,3.29131219]
[1617936405456,1.0,58054.0,58053.0,2.9876]
[1617936405856,1.11308,58054.0,58053.0,2.9876]
[1617936406057,1.11308,58054.0,58053.0,3.29095973]
[1617936407559,1.11308,58054.0,58053.0,0.30335973]
[1617936407859,4.62678,58054.0,58053.0,0.30335973]
[1617936408259,4.62678,58054.0,58047.0,0.30378117]
[1617936408563,1.10725655,58048.0,58046.0,0.30372131]
[1617936409461,1.10725655,58048.0,58045.0,0.30360352]
[1617936409761,1.0,58047.0,58045.0,0.30360352]
[1617936410162,1.0,58046.0,58045.0,0.30360352]
[1617936410464,1.0,58046.0,58044.0,0.30355093]
[1617936410962,1.0,58045.0,58044.0,0.30355093]
[1617936412163,1.0,58045.0,58043.0,0.30339066]
[1617936412996,1.0,58044.0,58043.0,0.30339066]
[1617936413192,1.0,58044.0,58035.0,0.44497297]
[1617936413193,1.0,58044.0,58038.0,0.30369826]
[1617936413767,1.0,58039.0,58037.0,0.30371036]
[1617936413966,1.13421,58039.0,58037.0,0.30371036]
[1617936414169,1.13421,58039.0,58036.0,0.36435903]
[1617936414675,1.13421,58039.0,58038.0,0.30362264]
[1617936415068,1.13421,58039.0,58037.0,0.30319954]
[1617936415666,1.0,58038.0,58037.0,0.30319954]
[1617936416568,1.0,58038.0,58037.0,3.96969954]
[1617936416772,1.10725655,58038.0,58037.0,3.96969954]
[1617936417370,1.10725655,58038.0,58037.0,0.30319954]
[1617936417572,3.87775655,58038.0,58037.0,0.30319954]
[1617936417773,4.02624655,58038.0,58037.0,0.30319954]
[1617936419676,3.02624655,58038.0,58037.0,0.30319954]
[1617936419876,4.02624655,58038.0,58037.0,0.30319954]
[1617936420077,4.02624655,58038.0,58036.0,0.30320821]
[1617936420578,4.02624655,58038.0,58035.0,0.30327522]
[1617936421480,1.25574655,58038.0,58035.0,0.30327522]
[1617936421680,2.9824,58036.0,58035.0,0.30327522]
[1617936421881,3.9824,58036.0,58035.0,0.30327522]
[1617936422979,2.9824,58036.0,58035.0,0.30327522]
[1617936423179,3.9824,58036.0,58035.0,0.30327522]
[1617936424885,4.08341,58036.0,58035.0,0.30327522]
[1617936426085,1.10101,58036.0,58035.0,0.30327522]
[1617936426385,0.10725655,58038.0,58035.0,3.63687522]
[1617936426585,1.0,58050.0,58035.0,0.41009522]
[1617936426787,1.10725655,58050.0,58049.0,3.3323]
[1617936426987,0.10725655,58050.0,58049.0,0.15291]
[1617936427288,0.10725655,58050.0,58049.0,3.48481]
[1617936428987,0.10725655,58050.0,58049.0,0.35291]
[1617936430292,0.10725655,58050.0,58049.0,0.45546113]
[1617936430894,0.10725655,58050.0,58049.0,0.81940397]
[1617936431591,0.10725655,58050.0,58049.0,0.88090928]
[1617936432395,0.10725655,58050.0,58049.0,0.51696644]
[1617936433293,0.10725655,58050.0,58049.0,0.30255113]
[1617936434192,1.10725655,58050.0,58049.0,0.30255113]
[1617936434492,1.10725655,58050.0,58048.0,0.30345646]
[1617936436094,1.10725655,58050.0,58047.0,0.30353091]
[1617936436492,2.5225,58048.0,58047.0,0.30353091]
[1617936436893,3.5225,58048.0,58047.0,0.30353091]
[1617936438394,3.5225,58048.0,58046.0,0.30355626]
[1617936438894,1.0,58047.0,58046.0,0.30355626]
[1617936439093,1.12692,58047.0,58046.0,0.30355626]
[1617936439997,1.12692,58047.0,58038.0,0.57263092]
[1617936439998,1.12692,58047.0,58045.0,0.30360626]
[1617936440396,1.12692,58047.0,58046.0,0.3035975]
[1617936440896,0.12692,58047.0,58046.0,0.3035975]
[1617936441697,0.43351955,58047.0,58046.0,0.66913808]
[1617936442798,1.43351955,58047.0,58046.0,0.66913808]
[1617936446708,1.43351955,58047.0,58046.0,1.11581754]
[1617936448209,1.43351955,58047.0,58046.0,0.66913808]
[1617936452016,1.43351955,58047.0,58046.0,1.11591343]
[1617936453817,1.80164399,58047.0,58046.0,1.11591343]
[1617936454722,1.43351955,58047.0,58046.0,1.11591343]
[1617936456524,0.43351955,58047.0,58046.0,1.11591343]
[1617936456721,0.30659955,58047.0,58046.0,1.11591343]
[1617936458922,1.30659955,58047.0,58046.0,1.11591343]
[1617936459823,0.30659955,58047.0,58046.0,1.11591343]
[1617936462327,1.30659955,58047.0,58046.0,1.11591343]
[1617936462728,3.91629955,58047.0,58046.0,1.11591343]
[1617936463227,4.28450405,58047.0,58046.0,0.66913808]
[1617936463527,4.28450405,58047.0,58046.0,0.73065427]
[1617936464027,4.28450405,58047.0,58046.0,0.66913808]
[1617936464427,2.12522493,58047.0,58046.0,0.66913808]
[1617936465028,1.67480405,58047.0,58046.0,1.11663332]
[1617936466629,0.67480405,58047.0,58046.0,1.11663332]
[1617936467028,1.67480405,58047.0,58046.0,1.11663332]
[1617936467228,1.77112405,58047.0,58046.0,1.11663332]
[1617936467832,4.86992405,58047.0,58046.0,1.11663332]
[1617936476545,5.3204361,58047.0,58046.0,1.11663332]
[1617936476945,5.3204361,58047.0,58046.0,0.66913808]
[1617936477143,5.3715361,58047.0,58046.0,0.66913808]
[1617936477448,5.3204361,58047.0,58046.0,1.11670482]
[1617936478349,4.86992405,58047.0,58046.0,1.11670482]
[1617936478748,5.32043494,58047.0,58046.0,1.11670482]
[1617936480949,0.77112405,58047.0,58046.0,1.11670482]
[1617936481258,0.77112405,58047.0,58046.0,4.45320482]
[1617936481259,0.67480405,58047.0,58046.0,4.45320482]
[1617936481751,0.67480405,58047.0,58046.0,4.60700015]
[1617936482487,0.67480405,58047.0,58046.0,1.27050015]
[1617936483149,0.67480405,58047.0,58046.0,4.2689567]
[1617936483353,0.30659955,58047.0,58046.0,4.62373121]
[1617936484351,0.30659955,58047.0,58046.0,1.73253121]
[1617936484551,3.49529955,58047.0,58046.0,1.62527466]
[1617936485051,3.6025561,58047.0,58046.0,1.62527466]
[1617936485254,3.6030688,58047.0,58046.0,1.62527466]
[1617936485853,3.29595655,58047.0,58046.0,1.62527466]
[1617936486052,0.10725655,58047.0,58046.0,1.62527466]
[1617936486255,0.10725655,58047.0,58046.0,4.95667466]
[1617936486753,0.10725655,58047.0,58046.0,5.11045689]
[1617936490260,0.41446273,58047.0,58046.0,5.11045689]
[1617936492159,0.10725655,58047.0,58046.0,5.11045689]
[1617936501769,0.23333655,58047.0,58046.0,5.11045689]
[1617936502671,0.23333655,58047.0,58046.0,1.77905689]
[1617936502881,3.41283655,58047.0,58046.0,1.77905689]
[1617936503272,3.41283655,58047.0,58046.0,1.62527466]
[1617936503474,4.41283655,58047.0,58046.0,1.62527466]
[1617936503803,4.41283655,58047.0,58046.0,1.17821466]
[1617936503804,4.71993188,58047.0,58046.0,1.17821466]
[1617936504077,5.0884333,58047.0,58046.0,1.17821466]
[1617936504577,5.0884333,58047.0,58046.0,1.11670482]
[1617936504977,1.9089333,58047.0,58046.0,1.11670482]
[1617936505378,0.9089333,58047.0,58046.0,1.11670482]
[1617936505578,1.9089333,58047.0,58046.0,4.42470482]
[1617936506382,1.9089333,58047.0,58046.0,4.57848279]
[1617936509586,0.9089333,58047.0,58046.0,4.57848279]
[1617936511088,0.9089333,58047.0,58046.0,1.27048279]
[1617936511491,4.9931333,58047.0,58046.0,1.27048279]
[1617936511791,4.9931333,58047.0,58046.0,1.11670482]
[1617936512289,4.9931333,58047.0,58046.0,1.17821605]
[1617936512490,4.9931333,58047.0,58046.0,1.11670482]
[1617936514393,3.9931333,58047.0,58046.0,1.11670482]
[1617936514593,4.9931333,58047.0,58046.0,1.11670482]
[1617936520509,5.44351579,58047.0,58046.0,1.11670482]
[1617936520906,5.44351579,58047.0,58046.0,0.66913808]
[1617936530815,5.44351579,58047.0,58046.0,0.3035975]
[1617936531116,5.44351579,58047.0,58046.0,0.36511312]
[1617936531615,5.44351579,58047.0,58046.0,0.3035975]
[1617936532015,5.44351579,58047.0,58046.0,0.67069349]
[1617936532919,5.13642046,58047.0,58046.0,0.67069349]
[1617936534420,5.13642046,58047.0,58046.0,0.3035975]
[1617936534820,5.13642046,58047.0,58046.0,0.36511356]
[1617936535120,5.13642046,58047.0,58046.0,0.3035975]
[1617936537423,5.18822046,58047.0,58046.0,0.3035975]
[1617936537924,5.13642046,58047.0,58046.0,0.3035975]
[1617936538227,5.44328046,58047.0,58046.0,0.3035975]
[1617936539926,4.44328046,58047.0,58046.0,0.3035975]
[1617936540128,5.44328046,58047.0,58046.0,0.3035975]
[1617936548635,5.44328046,58047.0,58045.0,0.30602273]
[1617936549238,1.57354018,58046.0,58045.0,0.30602273]
[1617936549436,2.57354018,58046.0,58045.0,0.30602273]
[1617936552241,2.57354018,58046.0,58044.0,0.30614822]
[1617936552640,1.28380275,58045.0,58044.0,0.30614822]
[1617936553942,2.28380275,58045.0,58044.0,0.30614822]
[1617936554144,1.28380275,58045.0,58043.0,0.30606938]
[1617936554346,2.28380275,58045.0,58043.0,0.30606938]
[1617936554745,1.12478506,58044.0,58041.0,0.36736224]
[1617936555145,1.57631743,58044.0,58043.0,0.30616092]
[1617936555545,1.2859929,58044.0,58043.0,0.30616092]
[1617936556247,2.2859929,58044.0,58043.0,0.30616092]
[1617936562054,5.5071929,58044.0,58043.0,0.30616092]
[1617936562757,5.79774883,58044.0,58043.0,0.30616092]
[1617936564861,4.79774883,58044.0,58043.0,0.30616092]
[1617936565057,5.79774883,58044.0,58043.0,0.30616092]
[1617936567965,6.30961378,58044.0,58043.0,0.30616092]
[1617936569668,6.30961378,58044.0,58042.0,0.36791126]
[1617936570070,1.60330365,58043.0,58042.0,0.36791126]
[1617936570470,1.60330365,58043.0,58042.0,0.67447299]
[1617936571071,1.60330365,58043.0,58042.0,0.30656173]
[1617936571571,6.16210365,58043.0,58042.0,0.73577285]
[1617936571871,5.86137099,58043.0,58042.0,0.67425461]
[1617936572372,6.16185734,58043.0,58042.0,0.67425461]
[1617936574174,6.16185734,58043.0,58042.0,0.30656173]
[1617936577777,6.16185734,58043.0,58042.0,0.67420449]
[1617936578278,6.16185734,58043.0,58042.0,0.30656173]
[1617936578683,6.67404662,58043.0,58042.0,0.67447044]
[1617936579280,5.67404662,58043.0,58042.0,0.67447044]
[1617936579480,6.67404662,58043.0,58042.0,0.67447044]
[1617936581780,3.11524662,58043.0,58042.0,0.67447044]
[1617936582583,2.81476027,58043.0,58042.0,0.67447044]
[1617936585084,2.81476027,58043.0,58042.0,0.36790871]
[1617936585282,2.81476027,58043.0,58042.0,0.73629221]
[1617936585683,2.81476027,58043.0,58042.0,0.6747723]
[1617936585883,6.52416027,58043.0,58042.0,0.6747723]
[1617936586482,5.52416027,58043.0,58042.0,0.6747723]
[1617936586683,6.81327648,58043.0,58042.0,0.6747723]
[1617936598597,6.92053303,58043.0,58042.0,0.30686359]
[1617936602510,3.21113303,58043.0,58042.0,0.30686359]
[1617936602799,3.21113303,58043.0,58042.0,3.54927359]
[1617936602998,2.21113303,58043.0,58042.0,3.54927359]
[1617936603246,1.92201682,58043.0,58042.0,3.97915939]
[1617936603627,1.92201682,58043.0,58042.0,1.07495939]
[1617936603828,1.40982754,58043.0,58042.0,1.32491406]
[1617936604032,4.99422754,58043.0,58042.0,1.32491406]
[1617936604224,4.99422754,58043.0,58042.0,1.26339226]
[1617936604605,5.2935047,58043.0,58042.0,1.32490746]
[1617936609108,4.99422754,58043.0,58042.0,1.32490746]
[1617936611911,4.54377123,58043.0,58042.0,1.32490746]
[1617936612811,4.99412508,58043.0,58042.0,1.32490746]
[1617936615316,4.54377123,58043.0,58042.0,1.32490746]
[1617936617819,0.95937123,58043.0,58042.0,1.32490746]
[1617936620025,0.41441842,58043.0,58042.0,1.32490746]
[1617936621029,0.41441842,58043.0,58042.0,1.83649467]
[1617936621830,0.78261319,58043.0,58042.0,1.32490746]
[1617936622527,0.96116556,58043.0,58042.0,1.32490746]
[1617936624732,0.59297079,58043.0,58042.0,1.32490746]
[1617936626234,0.41441842,58043.0,58042.0,1.32490746]
[1617936628837,3.78311842,58043.0,58042.0,1.32490746]
[1617936629348,3.78311842,58043.0,58042.0,1.18669746]
[1617936629841,3.78311842,58043.0,58042.0,1.12518226]
[1617936638863,0.41441842,58043.0,58042.0,1.12518226]
[1617936643064,0.59032885,58043.0,58042.0,1.12518226]
[1617936643968,0.41441842,58043.0,58042.0,1.12518226]
[1617936645371,0.78206874,58043.0,58042.0,1.12518226]
[1617936646372,0.95793593,58043.0,58042.0,1.12518226]
[1617936650177,0.41441842,58043.0,58042.0,1.12518226]
[1617936657787,0.78286709,58043.0,58042.0,1.63760013]
[1617936659687,1.78286709,58043.0,58042.0,1.63760013]
[1617936660590,2.4067499,58043.0,58042.0,1.63760013]
[1617936660890,1.95657611,58043.0,58042.0,1.63760013]
[1617936662289,5.58417611,58043.0,58042.0,1.63760013]
[1617936662591,4.58417611,58043.0,58042.0,1.63760013]
[1617936665191,4.47691956,58043.0,58042.0,1.63760013]
[1617936665692,0.95657611,58043.0,58042.0,1.63760013]
[1617936666392,1.40662049,58043.0,58042.0,1.63760013]
[1617936667795,2.40662049,58043.0,58042.0,1.63760013]
[1617936667993,2.40635931,58043.0,58042.0,1.63760013]
[1617936669796,2.40635931,58043.0,58042.0,1.12518226]
[1617936673499,2.40635931,58043.0,58042.0,1.63759929]
[1617936674000,2.40635931,58043.0,58042.0,1.12518226]
[1617936674300,2.40635931,58043.0,58042.0,1.18669682]
[1617936674799,5.07665931,58043.0,58042.0,1.12518226]
[1617936678504,2.40635931,58043.0,58042.0,1.12518226]
[1617936678703,1.40635931,58043.0,58042.0,1.12518226]
[1617936679204,1.40635931,58043.0,58042.0,4.49458226]
[1617936679405,1.23265029,58043.0,58042.0,4.49458226]
[1617936679805,1.40572486,58043.0,58042.0,4.64837301]
[1617936681807,4.47522486,58043.0,58042.0,1.27897301]
[1617936682107,1.40572486,58043.0,58042.0,1.27897301]
[1617936682307,4.47622486,58043.0,58042.0,1.27897301]
[1617936682512,5.47622486,58043.0,58042.0,1.12518226]
[1617936683011,6.28510852,58043.0,58042.0,0.67522759]
[1617936683308,5.28510852,58043.0,58042.0,0.67522759]
[1617936683511,6.28510852,58043.0,58042.0,0.67522759]
[1617936683711,3.21460852,58043.0,58042.0,0.67522759]
[1617936683919,2.21460852,58043.0,58042.0,0.67522759]
[1617936684110,3.21460852,58043.0,58042.0,0.67522759]
[1617936684309,2.91623591,58043.0,58042.0,0.67522759]
[1617936689818,2.91623591,58043.0,58042.0,0.30686359]
[1617936690817,1.91623591,58043.0,58042.0,0.30686359]
[1617936691016,2.91623591,58043.0,58042.0,0.30686359]
[1617936691219,2.91623591,58043.0,58042.0,0.67584264]
[1617936693617,2.40572486,58043.0,58042.0,0.30686359]
[1617936693819,3.20775518,58043.0,58042.0,0.30686359]
[1617936694419,2.9146905,58043.0,58042.0,0.30686359]
[1617936695217,2.9146905,58043.0,58040.0,2.5479]
[1617936695819,1.81342621,58041.0,58040.0,2.5479]
[1617936696118,1.95578621,58041.0,58040.0,2.5479]
[1617936696719,2.12100518,58041.0,58040.0,2.5479]
[1617936698123,2.62898485,58041.0,58040.0,2.5479]
[1617936698623,2.93377835,58041.0,58040.0,2.85490544]
[1617936698825,2.42579868,58041.0,58040.0,2.85490544]
[1617936699423,2.93352986,58041.0,58040.0,2.85490544]
[1617936699724,2.42579868,58041.0,58040.0,2.85490544]
[1617936701624,2.93350352,58041.0,58040.0,2.85490544]
[1617936702523,2.42579868,58041.0,58040.0,2.85490544]